fUST/lending_fUST_20250808
["ID","MTS","AMOUNT","RATE_DAILY","PERIOD"]
[377890380,1754601032695,-9306.36546084,0.00021655,2]
[377890381,1754601032704,-300.0,0.00021813,2]
[377890382,1754601032714,-500.0,0.00021814,2]
[377890383,1754601032723,-174.73594404,0.00021814,2]
[377890384,1754601032732,-500.0,0.00021814,2]
[377890385,1754601032740,-500.0,0.00021814,2]
[377890386,1754601032749,-500.0,0.00021814,2]
[377890388,1754601032759,-324.41830171,0.00021814,2]
[377890390,1754601032767,-236.43466315,0.00021814,2]
[377890391,1754601032776,-4000.16537145,0.00021815,2]
[377890392,1754601032785,-3309.48501252,0.00021817,2]
[377890448,1754601038550,-192.9371848,0.00021813,2]
[377890449,1754601038560,-12278.28635538,0.00021817,2]
[377890450,1754601038570,-3980.03365417,0.00021817,2]
[377890451,1754601038579,-460.0,0.00021917,2]
[377890452,1754601038589,-249.28922225,0.00021917,2]
[377890453,1754601038599,-460.0,0.00021917,2]
[377890454,1754601038609,-460.0,0.00021917,2]
[377890455,1754601038618,-460.0,0.00021917,2]
[377890456,1754601038628,-460.0,0.00021917,2]
[377890457,1754601038637,-460.0,0.00021917,2]
[377890458,1754601038647,-464.86,0.00021917,2]
[377890459,1754601038656,-573.86,0.00021917,2]
[377890461,1754601038669,-460.0,0.00021917,2]
[377890462,1754601038678,-460.0,0.00021917,2]
[377890463,1754601038688,-460.0,0.00021917,2]
[377890464,1754601038697,-460.0,0.00021917,2]
[377890465,1754601038707,-460.0,0.00021917,2]
[377890466,1754601038716,-460.0,0.00021917,2]
[377890468,1754601038725,-460.0,0.00021917,2]
[377890470,1754601038735,-460.0,0.00021917,2]
[377890471,1754601038745,-460.0,0.00021917,2]
[377890472,1754601038754,-460.0,0.00021917,2]
[377890473,1754601038764,-592.18,0.00021917,2]
[377890474,1754601038773,-460.0,0.00021917,2]
[377890475,1754601038783,-293.48174156,0.00021917,2]
[377890476,1754601038792,-460.0,0.00021917,2]
[377890477,1754601038803,-460.0,0.00021917,2]
[377890478,1754601038817,-642.7,0.00021917,2]
[377890479,1754601038826,-1102.66,0.00021917,2]
[377890480,1754601038836,-1190.86,0.00021917,2]
[377890481,1754601038845,-2196.89,0.00021917,2]
[377890482,1754601038857,-460.0,0.00021917,2]
[377890483,1754601038866,-661.96,0.00021917,2]
[377890484,1754601038875,-1126.44,0.00021917,2]
[377890485,1754601038884,-460.0,0.00021917,2]
[377890486,1754601038894,-460.0,0.00021917,2]
[377890487,1754601038904,-460.0,0.00021917,2]
[377890488,1754601038915,-556.55,0.00021917,2]
[377890489,1754601038926,-758.97,0.00021917,2]
[377890490,1754601038937,-514.76,0.00021917,2]
[377890491,1754601038947,-184.2346234,0.00021917,2]
[377890492,1754601038957,-460.0,0.00021917,2]
[377890493,1754601038966,-460.0,0.00021917,2]
[377890494,1754601038975,-460.0,0.00021917,2]
[377890495,1754601038986,-744.8,0.00021917,2]
[377890496,1754601038995,-460.0,0.00021917,2]
[377890497,1754601039004,-460.0,0.00021917,2]
[377890498,1754601039014,-460.0,0.00021917,2]
[377890499,1754601039023,-460.0,0.00021917,2]
[377890500,1754601039033,-969.38,0.00021917,2]
[377890501,1754601039043,-845.58,0.00021917,2]
[377890502,1754601039052,-1114.08,0.00021917,2]
[377890503,1754601039062,-460.0,0.00021917,2]
[377890504,1754601039072,-460.0,0.00021917,2]
[377890505,1754601039081,-460.0,0.00021917,2]
[377890506,1754601039091,-460.0,0.00021917,2]
[377890507,1754601039100,-511.43783229,0.00021917,2]
[377890508,1754601039110,-460.0,0.00021917,2]
[377890509,1754601039121,-885.95,0.00021917,2]
[377890510,1754601039130,-460.0,0.00021917,2]
[377890511,1754601039140,-460.0,0.00021917,2]
[377890512,1754601039150,-354.14,0.00022,2]
[377890513,1754601039159,-460.0,0.00022191,2]
[377890514,1754601039168,-460.0,0.00022191,2]
[377890515,1754601039178,-460.0,0.00022191,2]
[377890516,1754601039187,-460.0,0.00022191,2]
[377890517,1754601039197,-460.0,0.00022191,2]
[377890518,1754601039207,-464.86,0.00022191,2]
[377890519,1754601039216,-573.86,0.00022191,2]
[377890520,1754601039226,-460.0,0.00022191,2]
[377890521,1754601039235,-368.4,0.00022191,2]
[377890522,1754601039245,-460.0,0.00022191,2]
[377890523,1754601039254,-460.0,0.00022191,2]
[377890524,1754601039264,-460.0,0.00022191,2]
[377890525,1754601039274,-460.0,0.00022191,2]
[377890526,1754601039284,-460.0,0.00022191,2]
[377890527,1754601039294,-592.18,0.00022191,2]
[377890528,1754601039304,-460.0,0.00022191,2]
[377890529,1754601039313,-460.0,0.00022191,2]
[377890530,1754601039323,-460.0,0.00022191,2]
[377890531,1754601039332,-642.7,0.00022191,2]
[377890532,1754601039342,-1102.66,0.00022191,2]
[377890533,1754601039351,-1190.86,0.00022191,2]
[377890534,1754601039361,-2196.89,0.00022191,2]
[377890535,1754601039371,-460.0,0.00022191,2]
[377890536,1754601039380,-661.96,0.00022191,2]
[377890537,1754601039389,-1126.44,0.00022191,2]
[377890538,1754601039399,-460.0,0.00022191,2]
[377890539,1754601039408,-460.0,0.00022191,2]
[377890540,1754601039417,-460.0,0.00022191,2]
[377890541,1754601039427,-556.55,0.00022191,2]
[377890542,1754601039436,-758.97,0.00022191,2]
[377890543,1754601039446,-514.76,0.00022191,2]
[377890544,1754601039455,-460.0,0.00022191,2]
[377890545,1754601039465,-460.0,0.00022191,2]
[377890546,1754601039475,-460.0,0.00022191,2]
[377890547,1754601039484,-744.8,0.00022191,2]
[377890548,1754601039493,-460.0,0.00022191,2]
[377890549,1754601039503,-460.0,0.00022191,2]
[377890550,1754601039512,-460.0,0.00022191,2]
[377890551,1754601039521,-460.0,0.00022191,2]
[377890552,1754601039531,-969.38,0.00022191,2]
[377890553,1754601039540,-845.58,0.00022191,2]
[377890554,1754601039549,-1114.08,0.00022191,2]
[377890555,1754601039558,-460.0,0.00022191,2]
[377890556,1754601039567,-460.0,0.00022191,2]
[377890557,1754601039578,-460.0,0.00022191,2]
[377890558,1754601039587,-460.0,0.00022191,2]
[377890559,1754601039596,-885.95,0.00022191,2]
[377890560,1754601039605,-460.0,0.00022191,2]
[377890561,1754601039615,-460.0,0.00022191,2]
[377890562,1754601039624,-2601.35539379,0.00022275,2]
[377890563,1754601039641,-151.0,0.00022368,2]
[377890564,1754601039655,-300.0,0.00022368,2]
[377890565,1754601039668,-300.0,0.00022368,2]
[377890566,1754601039680,-151.0,0.00022368,2]
[377890567,1754601039694,-2264.10087164,0.00022368,2]
[377890568,1754601039706,-151.0,0.00022368,2]
[377890569,1754601039718,-300.0,0.00022368,2]
[377890570,1754601039728,-151.0,0.00022368,2]
[377890571,1754601039739,-300.0,0.00022368,2]
[377890572,1754601039750,-300.0,0.00022368,2]
[377890573,1754601039762,-151.0,0.00022368,2]
[377890574,1754601039773,-151.0,0.00022368,2]
[377890575,1754601039784,-300.0,0.00022368,2]
[377890576,1754601039795,-151.0,0.00022368,2]
[377890577,1754601039810,-300.0,0.00022368,2]
[377890578,1754601039822,-300.0,0.00022368,2]
[377890579,1754601039833,-151.0,0.00022368,2]
[377890580,1754601039845,-300.0,0.00022368,2]
[377890581,1754601039856,-151.0,0.00022368,2]
[377890582,1754601039867,-300.0,0.00022368,2]
[377890583,1754601039879,-300.0,0.00022368,2]
[377890584,1754601039892,-151.0,0.00022368,2]
[377890585,1754601039904,-151.0,0.00022368,2]
[377890586,1754601039916,-151.0,0.00022368,2]
[377890587,1754601039927,-151.0,0.00022368,2]
[377890588,1754601039939,-151.0,0.00022368,2]
[377890590,1754601039950,-151.0,0.00022368,2]
[377890591,1754601039961,-151.0,0.00022368,2]
[377890592,1754601039974,-151.0,0.00022368,2]
[377890593,1754601039986,-151.0,0.00022368,2]
[377890595,1754601040006,-151.0,0.00022368,2]
[377890597,1754601040021,-151.0,0.00022368,2]
[377890598,1754601040035,-460.0,0.00022465,2]
[377890599,1754601040048,-460.0,0.00022465,2]
[377890600,1754601040062,-464.86,0.00022465,2]
[377890601,1754601040075,-573.86,0.00022465,2]
[377890602,1754601040087,-460.0,0.00022465,2]
[377890603,1754601040099,-460.0,0.00022465,2]
[377890604,1754601040110,-460.0,0.00022465,2]
[377890605,1754601040122,-460.0,0.00022465,2]
[377890606,1754601040132,-460.0,0.00022465,2]
[377890607,1754601040142,-460.0,0.00022465,2]
[377890608,1754601040153,-592.18,0.00022465,2]
[377890609,1754601040165,-460.0,0.00022465,2]
[377890610,1754601040177,-460.0,0.00022465,2]
[377890611,1754601040188,-460.0,0.00022465,2]
[377890612,1754601040201,-642.7,0.00022465,2]
[377890613,1754601040212,-1102.66,0.00022465,2]
[377890614,1754601040225,-1190.86,0.00022465,2]
[377890615,1754601040236,-2196.89,0.00022465,2]
[377890616,1754601040249,-460.0,0.00022465,2]
[377890617,1754601040262,-661.96,0.00022465,2]
[377890618,1754601040276,-1126.44,0.00022465,2]
[377890619,1754601040288,-460.0,0.00022465,2]
[377890620,1754601040301,-460.0,0.00022465,2]
[377890622,1754601040315,-460.0,0.00022465,2]
[377890623,1754601040326,-556.55,0.00022465,2]
[377890624,1754601040338,-514.76,0.00022465,2]
[377890625,1754601040350,-758.97,0.00022465,2]
[377890626,1754601040361,-460.0,0.00022465,2]
[377890627,1754601040371,-460.0,0.00022465,2]
[377890628,1754601040381,-460.0,0.00022465,2]
[377890629,1754601040392,-744.8,0.00022465,2]
[377890630,1754601040402,-460.0,0.00022465,2]
[377890631,1754601040412,-460.0,0.00022465,2]
[377890632,1754601040422,-460.0,0.00022465,2]
[377890633,1754601040432,-460.0,0.00022465,2]
[377890634,1754601040443,-969.38,0.00022465,2]
[377890635,1754601040455,-845.58,0.00022465,2]
[377890636,1754601040467,-460.0,0.00022465,2]
[377890638,1754601040480,-1114.08,0.00022465,2]
[377890639,1754601040490,-460.0,0.00022465,2]
[377890640,1754601040503,-460.0,0.00022465,2]
[377890641,1754601040515,-460.0,0.00022465,2]
[377890642,1754601040524,-885.95,0.00022465,2]
[377890643,1754601040535,-460.0,0.00022465,2]
[377890644,1754601040546,-460.0,0.00022465,2]
[377890645,1754601040556,-496.88,0.00022729,3]
[377890646,1754601040567,-993.76,0.00022729,3]
[377890647,1754601040578,-496.88,0.00022729,3]
[377890648,1754601040591,-248.44,0.00022729,3]
[377890649,1754601040603,-745.32,0.00022729,3]
[377890650,1754601040615,-200.0,0.00022736,15]
[377890651,1754601040626,-300.0,0.00022736,15]
[377890652,1754601040637,-460.0,0.00022739,2]
[377890653,1754601040647,-464.86,0.00022739,2]
[377890654,1754601040660,-573.86,0.00022739,2]
[377890655,1754601040675,-460.0,0.00022739,2]
[377890656,1754601040686,-460.0,0.00022739,2]
[377890657,1754601040696,-460.0,0.00022739,2]
[377890658,1754601040707,-460.0,0.00022739,2]
[377890659,1754601040717,-460.0,0.00022739,2]
[377890660,1754601040728,-592.18,0.00022739,2]
[377890661,1754601040739,-460.0,0.00022739,2]
[377890662,1754601040750,-460.0,0.00022739,2]
[377890663,1754601040761,-241.11109459,0.00022739,2]
[377890664,1754601040771,-642.7,0.00022739,2]
[377890665,1754601040782,-1102.66,0.00022739,2]
[377890666,1754601040793,-1190.86,0.00022739,2]
[377890667,1754601040806,-2196.89,0.00022739,2]
[377890668,1754601040819,-344.58105114,0.00022739,2]
[377890669,1754601040831,-661.96,0.00022739,2]
[377890670,1754601040842,-1126.44,0.00022739,2]
[377890671,1754601040857,-460.0,0.00022739,2]
[377890672,1754601040868,-460.0,0.00022739,2]
[377890673,1754601040879,-460.0,0.00022739,2]
[377890674,1754601040891,-556.55,0.00022739,2]
[377890675,1754601040901,-514.76,0.00022739,2]
[377890676,1754601040912,-758.97,0.00022739,2]
[377890677,1754601040923,-460.0,0.00022739,2]
[377890678,1754601040936,-460.0,0.00022739,2]
[377890679,1754601040950,-460.0,0.00022739,2]
[377890680,1754601040960,-744.8,0.00022739,2]
[377890681,1754601040972,-460.0,0.00022739,2]
[377890682,1754601040982,-460.0,0.00022739,2]
[377890683,1754601040993,-460.0,0.00022739,2]
[377890684,1754601041003,-460.0,0.00022739,2]
[377890685,1754601041014,-969.38,0.00022739,2]
[377890686,1754601041025,-460.0,0.00022739,2]
[377890687,1754601041040,-845.58,0.00022739,2]
[377890688,1754601041052,-460.0,0.00022739,2]
[377890689,1754601041064,-1114.08,0.00022739,2]
[377890690,1754601041076,-460.0,0.00022739,2]
[377890691,1754601041087,-460.0,0.00022739,2]
[377890692,1754601041099,-885.95,0.00022739,2]
[377890693,1754601041110,-460.0,0.00022739,2]
[377890694,1754601041122,-460.0,0.00022739,2]
[377890695,1754601041133,-500.0,0.00022757,2]
[377890696,1754601041144,-431.70643286,0.00022771,2]
[377890697,1754601041156,-500.0,0.00022771,2]
[377890698,1754601041167,-500.0,0.00022883,2]
[377890699,1754601041178,-160.0,0.00022886,2]
[377890700,1754601041189,-160.0,0.00022886,2]
[377890701,1754601041199,-216.52217562,0.00022889,2]
[377890702,1754601041211,-842.63596909,0.00022889,2]
[377890703,1754601041222,-312.16666667,0.00022889,2]
[377890704,1754601041233,-12660.90439413,0.00022889,2]
[377890705,1754601041245,-215.31718835,0.00022889,2]
[377890706,1754601041256,-231.83071243,0.00022889,2]
[377890707,1754601041268,-160.0,0.00022889,2]
[377890708,1754601041279,-461.3695942,0.00022889,2]
[377890709,1754601041290,-160.0,0.00022893,2]
[377890710,1754601041301,-842.63596909,0.00023,3]
[377890711,1754601041312,-231.83071243,0.00023,3]
[377890712,1754601041323,-160.0,0.00023,2]
[377890713,1754601041334,-460.0,0.00023013,2]
[377890714,1754601041345,-464.86,0.00023013,2]
[377890715,1754601041356,-573.86,0.00023013,2]
[377890716,1754601041366,-578.86398629,0.00023013,2]
[377890717,1754601041377,-460.0,0.00023013,2]
[377890718,1754601041388,-460.0,0.00023013,2]
[377890719,1754601041398,-460.0,0.00023013,2]
[377890720,1754601041409,-460.0,0.00023013,2]
[377890721,1754601041419,-592.18,0.00023013,2]
[377890722,1754601041430,-460.0,0.00023013,2]
[377890723,1754601041441,-460.0,0.00023013,2]
[377890724,1754601041451,-642.7,0.00023013,2]
[377890725,1754601041462,-1102.66,0.00023013,2]
[377890726,1754601041473,-1190.86,0.00023013,2]
[377890727,1754601041485,-2196.89,0.00023013,2]
[377890728,1754601041496,-661.96,0.00023013,2]
[377890729,1754601041507,-1126.44,0.00023013,2]
[377890730,1754601041518,-460.0,0.00023013,2]
[377890731,1754601041529,-460.0,0.00023013,2]
[377890732,1754601041539,-460.0,0.00023013,2]
[377890733,1754601041550,-556.55,0.00023013,2]
[377890734,1754601041561,-514.76,0.00023013,2]
[377890735,1754601041571,-758.97,0.00023013,2]
[377890736,1754601041582,-460.0,0.00023013,2]
[377890737,1754601041592,-460.0,0.00023013,2]
[377890738,1754601041602,-460.0,0.00023013,2]
[377890739,1754601041612,-744.8,0.00023013,2]
[377890740,1754601041622,-460.0,0.00023013,2]
[377890741,1754601041634,-460.0,0.00023013,2]
[377890742,1754601041644,-460.0,0.00023013,2]
[377890743,1754601041655,-969.38,0.00023013,2]
[377890744,1754601041665,-460.0,0.00023013,2]
[377890745,1754601041675,-460.0,0.00023013,2]
[377890746,1754601041686,-845.58,0.00023013,2]
[377890747,1754601041696,-1114.08,0.00023013,2]
[377890749,1754601041901,-460.0,0.00023013,2]
[377890750,1754601041916,-460.0,0.00023013,2]
[377890751,1754601041929,-885.95,0.00023013,2]
[377890752,1754601041938,-460.0,0.00023013,2]
[377890753,1754601041948,-971.15882712,0.00023027,2]
[377890754,1754601041957,-600.0,0.00023184,2]
[377890755,1754601041966,-354.14,0.00023242,2]
[377890756,1754601041976,-509.2539854,0.00023248,2]
[377890757,1754601041985,-3980.03365415,0.00023249,2]
[377890758,1754601041995,-460.0,0.00023287,2]
[377890759,1754601042005,-464.86,0.00023287,2]
[377890760,1754601042014,-573.86,0.00023287,2]
[377890761,1754601042024,-460.0,0.00023287,2]
[377890762,1754601042033,-460.0,0.00023287,2]
[377890763,1754601042042,-460.0,0.00023287,2]
[377890764,1754601042051,-460.0,0.00023287,2]
[377890765,1754601042061,-592.18,0.00023287,2]
[377890766,1754601042070,-460.0,0.00023287,2]
[377890767,1754601042079,-460.0,0.00023287,2]
[377890768,1754601042088,-642.7,0.00023287,2]
[377890769,1754601042098,-1102.66,0.00023287,2]
[377890770,1754601042107,-1190.86,0.00023287,2]
[377890771,1754601042117,-2196.89,0.00023287,2]
[377890772,1754601042126,-661.96,0.00023287,2]
[377890773,1754601042136,-1126.44,0.00023287,2]
[377890774,1754601042145,-460.0,0.00023287,2]
[377890775,1754601042155,-236.60260232,0.00023287,2]
[377890776,1754601042164,-494.94887208,0.00023287,2]
[377890777,1754601042173,-556.55,0.00023287,2]
[377890778,1754601042183,-514.76,0.00023287,2]
[377890779,1754601042192,-758.97,0.00023287,2]
[377890780,1754601042202,-460.0,0.00023287,2]
[377890781,1754601042215,-460.0,0.00023287,2]
[377890782,1754601042228,-460.0,0.00023287,2]
[377890783,1754601042239,-744.8,0.00023287,2]
[377890784,1754601042248,-460.0,0.00023287,2]
[377890785,1754601042259,-151.0,0.00023287,2]
[377890786,1754601042274,-460.0,0.00023287,2]
[377890787,1754601042283,-460.0,0.00023287,2]
[377890788,1754601042293,-969.38,0.00023287,2]
[377890789,1754601042309,-460.0,0.00023287,2]
[377890790,1754601042321,-845.58,0.00023287,2]
[377890791,1754601042331,-1114.08,0.00023287,2]
[377890792,1754601042340,-460.0,0.00023287,2]
[377890793,1754601042350,-460.0,0.00023287,2]
[377890794,1754601042358,-460.0,0.00023287,2]
[377890795,1754601042367,-885.95,0.00023287,2]
[377890796,1754601042376,-460.0,0.00023287,2]
[377890797,1754601042386,-1000.0,0.00023305,2]
[377890798,1754601042395,-1000.0,0.00023319,2]
[377890799,1754601042404,-4062.22276524,0.00023329,2]
[377890800,1754601042413,-217.7229829,0.0002339,2]
[377890801,1754601042423,-350.67590405,0.00023408,2]
[377890802,1754601042432,-500.0,0.00023408,2]
[377890803,1754601042441,-500.0,0.00023408,2]
[377890804,1754601042450,-500.0,0.00023408,2]
[377890805,1754601042459,-500.0,0.00023408,2]
[377890806,1754601042468,-500.0,0.00023408,2]
[377890807,1754601042477,-577.81520118,0.00023408,2]
[377890808,1754601042486,-500.0,0.00023408,2]
[377890809,1754601042495,-500.0,0.00023408,2]
[377890810,1754601042504,-500.0,0.00023408,2]
[377890811,1754601042513,-500.0,0.00023408,2]
[377890812,1754601042523,-500.0,0.00023408,2]
[377890813,1754601042531,-500.0,0.00023408,2]
[377890814,1754601042540,-500.0,0.00023408,2]
[377890815,1754601042549,-500.0,0.00023408,2]
[377890816,1754601042559,-500.0,0.00023408,2]
[377890817,1754601042568,-500.0,0.00023408,2]
[377890818,1754601042578,-12955.99646668,0.00023409,2]
[377890819,1754601042588,-1000.0,0.00023431,2]
[377890820,1754601042597,-420.0,0.00023538,2]
[377890821,1754601042607,-480.0,0.00023539,2]
[377890822,1754601042616,-151.0,0.00023561,2]
[377890823,1754601042625,-460.0,0.00023561,2]
[377890824,1754601042634,-464.86,0.00023561,2]
[377890825,1754601042643,-573.86,0.00023561,2]
[377890826,1754601042652,-460.0,0.00023561,2]
[377890827,1754601042661,-460.0,0.00023561,2]
[377890828,1754601042671,-460.0,0.00023561,2]
[377890829,1754601042681,-460.0,0.00023561,2]
[377890830,1754601042692,-592.18,0.00023561,2]
[377890831,1754601042701,-460.0,0.00023561,2]
[377890832,1754601042710,-460.0,0.00023561,2]
[377890833,1754601042720,-642.7,0.00023561,2]
[377890834,1754601042730,-1102.66,0.00023561,2]
[377890835,1754601042738,-1190.86,0.00023561,2]
[377890836,1754601042749,-2196.89,0.00023561,2]
[377890837,1754601042759,-661.96,0.00023561,2]
[377890838,1754601042770,-1126.44,0.00023561,2]
[377890839,1754601042779,-460.0,0.00023561,2]
[377890840,1754601042789,-556.55,0.00023561,2]
[377890841,1754601042798,-514.76,0.00023561,2]
[377890842,1754601042808,-758.97,0.00023561,2]
[377890843,1754601042819,-460.0,0.00023561,2]
[377890844,1754601042827,-460.0,0.00023561,2]
[377890845,1754601042836,-460.0,0.00023561,2]
[377890846,1754601042847,-744.8,0.00023561,2]
[377890847,1754601042856,-460.0,0.00023561,2]
[377890848,1754601042865,-277.59336947,0.00023561,2]
[377890849,1754601042875,-460.0,0.00023561,2]
[377890850,1754601042884,-460.0,0.00023561,2]
[377890851,1754601042894,-969.38,0.00023561,2]
[377890852,1754601042903,-460.0,0.00023561,2]
[377890853,1754601042912,-845.58,0.00023561,2]
[377890854,1754601042922,-1114.08,0.00023561,2]
[377890855,1754601042931,-460.0,0.00023561,2]
[377890857,1754601042941,-460.0,0.00023561,2]
[377890859,1754601042950,-219.07990085,0.00023561,2]
[377890860,1754601042960,-885.95,0.00023561,2]
[377890861,1754601042970,-460.0,0.00023561,2]
[377890862,1754601042980,-971.0,0.00023597,2]
[377890863,1754601042988,-2149.0,0.00023597,2]
[377890864,1754601042998,-636.0,0.00023597,2]
[377890865,1754601043007,-19234.38887591,0.00023612,3]
[377890866,1754601043018,-160.0,0.00023612,3]
[377890868,1754601043027,-312.16666667,0.00023612,3]
[377890869,1754601043037,-216.52217562,0.00023612,3]
[377890870,1754601043046,-160.0,0.00023612,3]
[377890871,1754601043057,-160.0,0.00023612,3]
[377890872,1754601043066,-160.0,0.00023612,3]
[377890873,1754601043075,-1680.0,0.00023649,2]
[377890874,1754601043086,-160.0,0.000237,2]
[377890875,1754601043097,-895.6,0.0002371,2]
[377890876,1754601043106,-150.0,0.00023712,2]
[377890877,1754601043116,-205.622,0.00023712,2]
[377890878,1754601043126,-250.0,0.00023712,2]
[377890879,1754601043135,-220.053,0.00023712,2]
[377890881,1754601043145,-250.0,0.00023712,2]
[377890882,1754601043155,-260.849,0.00023712,2]
[377890883,1754601043163,-219.412,0.00023712,2]
[377890885,1754601043173,-151.0,0.00023737,2]
[377890887,1754601043182,-151.0,0.00023835,2]
[377890890,1754601043191,-460.0,0.00023835,2]
[377890892,1754601043200,-464.86,0.00023835,2]
[377890893,1754601043209,-573.86,0.00023835,2]
[377890894,1754601043218,-386.02354702,0.00023835,2]
[377890895,1754601043228,-460.0,0.00023835,2]
[377890896,1754601043237,-460.0,0.00023835,2]
[377890897,1754601043247,-460.0,0.00023835,2]
[377890898,1754601043256,-592.18,0.00023835,2]
[377890899,1754601043266,-460.0,0.00023835,2]
[377890900,1754601043276,-460.0,0.00023835,2]
[377890901,1754601043285,-642.7,0.00023835,2]
[377890902,1754601043295,-1102.66,0.00023835,2]
[377890903,1754601043304,-1190.86,0.00023835,2]
[377890904,1754601043313,-2196.89,0.00023835,2]
[377890905,1754601043323,-661.96,0.00023835,2]
[377890906,1754601043332,-1126.44,0.00023835,2]
[377890907,1754601043342,-460.0,0.00023835,2]
[377890908,1754601043351,-556.55,0.00023835,2]
[377890909,1754601043361,-514.76,0.00023835,2]
[377890910,1754601043370,-758.97,0.00023835,2]
[377890911,1754601043379,-460.0,0.00023835,2]
[377890912,1754601043389,-460.0,0.00023835,2]
[377890913,1754601043398,-460.0,0.00023835,2]
[377890914,1754601043408,-744.8,0.00023835,2]
[377890915,1754601043417,-460.0,0.00023835,2]
[377890916,1754601043426,-460.0,0.00023835,2]
[377890917,1754601043436,-460.0,0.00023835,2]
[377890918,1754601043445,-969.38,0.00023835,2]
[377890919,1754601043455,-460.0,0.00023835,2]
[377890920,1754601043464,-845.58,0.00023835,2]
[377890921,1754601043474,-1114.08,0.00023835,2]
[377890922,1754601043483,-460.0,0.00023835,2]
[377890923,1754601043492,-460.0,0.00023835,2]
[377890924,1754601043501,-885.95,0.00023835,2]
[377890925,1754601043510,-460.0,0.00023835,2]
[377890926,1754601043520,-609.36035203,0.00023836,2]
[377890927,1754601043529,-1500.0,0.00023853,2]
[377890928,1754601043538,-1500.0,0.00023867,2]
[377890929,1754601043548,-522.02562572,0.000239,2]
[377890930,1754601043557,-609.36035203,0.00023973,2]
[377890931,1754601043566,-1500.0,0.00023979,2]
[377890932,1754601043575,-7548.02499946,0.00024,2]
[377890933,1754601043585,-430.06885889,0.00024,2]
[377890934,1754601043594,-609.36035203,0.00024082,2]
[377890935,1754601043603,-895.6,0.00024096,3]
[377890936,1754601043613,-993.76,0.00024099,3]
[377890937,1754601043623,-1987.52,0.00024099,3]
[377890938,1754601043633,-993.76,0.00024099,3]
[377890939,1754601043649,-496.88,0.00024099,3]
[377890941,1754601043659,-288.99,0.00024109,2]
[377890943,1754601043668,-460.0,0.00024109,2]
[377890947,1754601043677,-464.86,0.00024109,2]
[377890950,1754601043687,-573.86,0.00024109,2]
[377890953,1754601043696,-460.0,0.00024109,2]
[377890955,1754601043704,-460.0,0.00024109,2]
[377890957,1754601043714,-460.0,0.00024109,2]
[377890960,1754601043724,-592.18,0.00024109,2]
[377890962,1754601043733,-460.0,0.00024109,2]
[377890965,1754601043742,-460.0,0.00024109,2]
[377890966,1754601043751,-642.7,0.00024109,2]
[377890968,1754601043760,-1102.66,0.00024109,2]
[377890970,1754601043770,-1190.86,0.00024109,2]
[377890972,1754601043779,-2196.89,0.00024109,2]
[377890974,1754601043788,-661.96,0.00024109,2]